fUSD/lending_fUSD_20260107
["ID","MTS","AMOUNT","RATE_DAILY","PERIOD"]
[400619425,1767747053462,-609.90650844,0.00032877,7]
[400619427,1767747053472,-609.90650844,0.00032877,7]
[400619429,1767747053482,-609.90650844,0.00032877,7]
[400619431,1767747053492,-609.90650844,0.00032877,7]
[400619433,1767747053503,-609.90650844,0.00032877,7]
[400619435,1767747053512,-606.6964742,0.00032877,7]
[400619437,1767747053521,-606.6964742,0.00032877,7]
[400619439,1767747053531,-606.6964742,0.00032877,7]
[400619441,1767747053540,-606.6964742,0.00032877,7]
[400619443,1767747053549,-606.6964742,0.00032877,7]
[400619445,1767747053559,-606.6964742,0.00032877,7]
[400619447,1767747053568,-606.6964742,0.00032877,7]
[400619449,1767747053577,-606.6964742,0.00032877,7]
[400619451,1767747053587,-606.6964742,0.00032877,7]
[400619453,1767747053597,-606.6964742,0.00032877,7]
[400619455,1767747053607,-606.6964742,0.00032877,7]
[400619457,1767747053616,-606.6964742,0.00032877,7]
[400619459,1767747053625,-606.6964742,0.00032877,7]
[400619461,1767747053634,-606.6964742,0.00032877,7]
[400619463,1767747053644,-606.6964742,0.00032877,7]
[400619465,1767747053654,-606.6964742,0.00032877,7]
[400619467,1767747053663,-606.6964742,0.00032877,7]
[400619469,1767747053672,-606.6964742,0.00032877,7]
[400619471,1767747053681,-606.6964742,0.00032877,7]
[400619473,1767747053690,-200.0,0.00032877,2]
[400619475,1767747053700,-1208.94,0.000329,14]
[400619477,1767747053709,-1187.94,0.000329,14]
[400619479,1767747053718,-3805.47,0.000329,2]
[400619481,1767747053727,-152.582834,0.000329,31]
[400619483,1767747053737,-1846.1457405,0.000329,2]
[400619485,1767747053746,-2870.5,0.0003299,3]
[400619487,1767747053756,-552.05024768,0.00033,30]
[400619489,1767747053764,-435.34,0.00033,120]
[400619491,1767747053773,-51125.40259919,0.00033,2]
[400619493,1767747053783,-26289.76664934,0.00033,2]
[400619495,1767747053792,-51405.61485821,0.00033,2]
[400619497,1767747053802,-153.01341138,0.00033,2]
[400619499,1767747053812,-109679.09,0.00033,2]
[400619502,1767747053823,-151.0,0.00033,31]
[400619504,1767747053832,-188.540171,0.00033,31]
[400619505,1767747053843,-161.5794526,0.00033,9]
[400619507,1767747053852,-151.0,0.00033,31]
[400619509,1767747053861,-151.0,0.00033,31]
[400619511,1767747053871,-151.0,0.00033,31]
[400619513,1767747053880,-151.0,0.00033,31]
[400619515,1767747053889,-151.0,0.00033,31]
[400619517,1767747053899,-1068.205651,0.00033,31]
[400619520,1767747053910,-223.68981,0.00033,7]
[400619522,1767747053919,-1068.205651,0.00033,31]
[400619524,1767747053928,-223.68981,0.00033,7]
[400619526,1767747053938,-1068.205651,0.00033,31]
[400619528,1767747053948,-223.68981,0.00033,7]
[400619530,1767747053957,-1068.205651,0.00033,31]
[400619532,1767747053966,-223.68981,0.00033,7]
[400619534,1767747053976,-151.0,0.00033,31]
[400619536,1767747053985,-812.446102,0.00033,31]
[400619538,1767747053995,-151.0,0.00033,31]
[400619540,1767747054004,-812.446102,0.00033,31]
[400619542,1767747054014,-812.446102,0.00033,31]
[400619544,1767747054024,-812.446102,0.00033,31]
[400619546,1767747054033,-1549.071127,0.00033,31]
[400619548,1767747054043,-1549.071127,0.00033,31]
[400619550,1767747054052,-1549.071127,0.00033,31]
[400619552,1767747054061,-205.108443,0.00033,31]
[400619554,1767747054070,-763.352621,0.00033,31]
[400619556,1767747054080,-1549.071127,0.00033,31]
[400619558,1767747054089,-205.108443,0.00033,31]
[400619560,1767747054099,-763.352621,0.00033,31]
[400619562,1767747054112,-205.108443,0.00033,31]
[400619564,1767747054122,-763.352621,0.00033,31]
[400619566,1767747054132,-763.352621,0.00033,31]
[400619568,1767747054143,-205.108443,0.00033,31]
[400619570,1767747054152,-171.0,0.00033,14]
[400619572,1767747054162,-400.0,0.00033,14]
[400619574,1767747054171,-536.240369,0.00033,31]
[400619576,1767747054181,-536.240369,0.00033,31]
[400619578,1767747054192,-536.240369,0.00033,31]
[400619580,1767747054201,-536.240369,0.00033,31]
[400619582,1767747054211,-151.0,0.00033,31]
[400619584,1767747054220,-193.687225,0.00033,31]
[400619585,1767747054229,-193.687225,0.00033,31]
[400619586,1767747054244,-193.687225,0.00033,31]
[400619587,1767747054254,-193.687225,0.00033,31]
[400619588,1767747054264,-151.0,0.00033,31]
[400619589,1767747054274,-554.257037,0.00033,31]
[400619590,1767747054284,-151.0,0.00033,31]
[400619591,1767747054294,-554.257037,0.00033,31]
[400619592,1767747054304,-554.257037,0.00033,31]
[400619593,1767747054313,-151.0,0.00033,31]
[400619595,1767747054323,-554.257037,0.00033,31]
[400619597,1767747054333,-151.0,0.00033,31]
[400619599,1767747054342,-909.34449,0.00033,31]
[400619601,1767747054352,-909.34449,0.00033,31]
[400619602,1767747054364,-909.34449,0.00033,31]
[400619605,1767747054373,-909.34449,0.00033,31]
[400619607,1767747054383,-168.0,0.00033,14]
[400619609,1767747054392,-154.38633309,0.00033065,2]
[400619611,1767747054402,-400.0,0.00033151,30]
[400619613,1767747054411,-152.0,0.00033153,6]
[400619614,1767747054422,-200.0,0.00033206,2]
[400619617,1767747054431,-200.0,0.00033206,2]
[400619618,1767747054441,-200.0,0.00033206,2]
[400619621,1767747054451,-200.0,0.00033206,2]
[400619623,1767747054464,-1040.62,0.000333,30]
[400619624,1767747054474,-4708.68,0.000334,14]
[400619627,1767747054484,-363.39940269,0.00033464,2]
[400619629,1767747054493,-1207.15046117,0.000335,2]
[400619631,1767747054502,-164.4,0.000335,4]
[400619633,1767747054512,-200.0,0.00033538,2]
[400619635,1767747054521,-200.0,0.00033538,2]
[400619637,1767747054531,-200.0,0.00033538,2]
[400619639,1767747054540,-236.74555436,0.00033562,11]
[400619640,1767747054549,-310.0,0.00033627,2]
[400619643,1767747054559,-505.0,0.00033636,6]
[400619644,1767747054568,-152.0,0.00033656,7]
[400619647,1767747054578,-3805.47,0.000337,2]
[400619648,1767747054587,-200.0,0.00033873,2]
[400619650,1767747054597,-200.0,0.00033873,2]
[400619652,1767747054606,-200.0,0.00033873,2]
[400619654,1767747054616,-310.0,0.00033885,2]
[400619657,1767747054625,-1040.62,0.000339,30]
[400619658,1767747054634,-304.13144408,0.00033911,3]
[400619660,1767747054644,-164.0,0.00033916,120]
[400619662,1767747054653,-325.97778318,0.00034,2]
[400619664,1767747054663,-772.98909842,0.00034,7]
[400619666,1767747054672,-1909.29605499,0.00034,2]
[400619668,1767747054681,-2000.0,0.00034,2]
[400619670,1767747054690,-160.0,0.00034,6]
[400619672,1767747054699,-208.2,0.00034,6]
[400619674,1767747054709,-310.0,0.00034149,7]
[400619676,1767747054718,-152.0,0.00034159,8]
[400619678,1767747054727,-294.6357062,0.00034174,2]
[400619680,1767747054736,-344.91441206,0.00034174,2]
[400619682,1767747054745,-109679.09,0.000342,2]
[400619684,1767747054754,-200.0,0.00034212,2]
[400619686,1767747054763,-200.0,0.00034212,2]
[400619688,1767747054772,-200.0,0.00034212,2]
[400619690,1767747054781,-310.0,0.00034217,2]
[400619692,1767747054790,-151.0,0.00034244,14]
[400619694,1767747054799,-194.72792766,0.00034246,2]
[400619696,1767747054808,-157.88868512,0.00034247,2]
[400619698,1767747054818,-1187.94,0.000343,14]
[400619700,1767747054827,-151.0,0.00034355,31]
[400619702,1767747054836,-151.0,0.00034355,31]
[400619704,1767747054846,-1725.60731908,0.0003449,2]
[400619706,1767747054855,-433.0,0.0003449,10]
[400619708,1767747054864,-1208.94,0.000345,14]
[400619710,1767747054873,-3805.47,0.000345,2]
[400619712,1767747054883,-5000.0,0.000345,14]
[400619714,1767747054892,-160.0,0.000345,9]
[400619716,1767747054901,-160.0,0.000345,9]
[400619718,1767747054911,-171.0,0.00034521,30]
[400619720,1767747054921,-400.0,0.00034521,30]
[400619722,1767747054930,-168.0,0.00034521,30]
[400619724,1767747054940,-204.697972,0.00034542,31]
[400619726,1767747054949,-151.0,0.00034542,31]
[400619728,1767747054959,-175.800647,0.00034542,31]
[400619730,1767747054968,-1851.045269,0.00034542,31]
[400619732,1767747054978,-1851.045269,0.00034542,31]
[400619734,1767747054988,-1851.045269,0.00034542,31]
[400619736,1767747054997,-1851.045269,0.00034542,31]
[400619738,1767747055007,-151.0,0.00034542,31]
[400619740,1767747055016,-2590.0,0.00034543,120]
[400619742,1767747055026,-1040.62,0.000346,30]
[400619744,1767747055036,-310.0,0.00034636,2]
[400619746,1767747055045,-152.0,0.00034662,9]
[400619748,1767747055054,-154.38633309,0.00034805,2]
[400619750,1767747055063,-6505.11467841,0.00034852,60]
[400619752,1767747055073,-354.5798613,0.0003488,120]
[400619755,1767747055082,-646.07443295,0.00034889,2]
[400619757,1767747055091,-505.0,0.00034889,7]
[400619758,1767747055100,-409.38500125,0.00034935,30]
[400619760,1767747055113,-160.0,0.00035,11]
[400619761,1767747055122,-160.0,0.00035,11]
[400619762,1767747055132,-208.2,0.00035,11]
[400619763,1767747055141,-627.34601575,0.00035,30]
[400619764,1767747055151,-8532.61725714,0.00035,30]
[400619765,1767747055161,-9306.92456789,0.00035,30]
[400619766,1767747055170,-1911.22125804,0.00035,2]
[400619767,1767747055180,-1098.89790899,0.00035,30]
[400619768,1767747055189,-825.97217431,0.00035,30]
[400619769,1767747055198,-178.13204382,0.00035,120]
[400619771,1767747055208,-401.13837131,0.00035,30]
[400619772,1767747055217,-1271.020055,0.00035,31]
[400619773,1767747055226,-1271.020055,0.00035,31]
[400619774,1767747055235,-1271.020055,0.00035,31]
[400619775,1767747055244,-1271.020055,0.00035,31]
[400619776,1767747055254,-3207.086174,0.00035,31]
[400619777,1767747055263,-1016.122291,0.00035,31]
[400619778,1767747055273,-1016.122291,0.00035,31]
[400619780,1767747055283,-3207.086174,0.00035,31]
[400619782,1767747055292,-1722.635026,0.00035,31]
[400619784,1767747055301,-3207.086174,0.00035,31]
[400619786,1767747055310,-1016.122291,0.00035,31]
[400619788,1767747055320,-151.0,0.00035,31]
[400619790,1767747055330,-1722.635026,0.00035,31]
[400619791,1767747055340,-420.21847,0.00035,31]
[400619792,1767747055349,-1016.122291,0.00035,31]
[400619793,1767747055359,-3207.086174,0.00035,31]
[400619794,1767747055368,-1722.635026,0.00035,31]
[400619796,1767747055378,-420.21847,0.00035,31]
[400619798,1767747055387,-1722.635026,0.00035,31]
[400619799,1767747055396,-420.21847,0.00035,31]
[400619800,1767747055406,-420.21847,0.00035,31]
[400619801,1767747055416,-273.96162,0.00035,31]
[400619802,1767747055425,-1047.174783,0.00035,31]
[400619803,1767747055434,-273.96162,0.00035,31]
[400619804,1767747055444,-1047.174783,0.00035,31]
[400619805,1767747055453,-273.96162,0.00035,31]
[400619806,1767747055462,-1047.174783,0.00035,31]
[400619807,1767747055472,-273.96162,0.00035,31]
[400619808,1767747055482,-1047.174783,0.00035,31]
[400619809,1767747055491,-406.566354,0.00035,31]
[400619810,1767747055501,-406.566354,0.00035,31]
[400619811,1767747055510,-406.566354,0.00035,31]
[400619812,1767747055520,-151.0,0.00035,7]
[400619813,1767747055530,-406.566354,0.00035,31]
[400619814,1767747055539,-995.647522,0.00035,31]
[400619815,1767747055549,-995.647522,0.00035,31]
[400619816,1767747055558,-995.647522,0.00035,31]
[400619817,1767747055569,-995.647522,0.00035,31]
[400619818,1767747055579,-151.0,0.00035,31]
[400619819,1767747055589,-602.333126,0.00035,31]
[400619820,1767747055598,-963.692266,0.00035,28]
[400619821,1767747055608,-151.0,0.00035,31]
[400619822,1767747055617,-602.333126,0.00035,31]
[400619823,1767747055626,-963.692266,0.00035,28]
[400619824,1767747055636,-151.0,0.00035,31]
[400619825,1767747055645,-602.333126,0.00035,31]
[400619826,1767747055654,-963.692266,0.00035,28]
[400619827,1767747055664,-301.240145,0.00035,31]
[400619828,1767747055673,-151.0,0.00035,31]
[400619829,1767747055682,-963.692266,0.00035,28]
[400619830,1767747055692,-301.240145,0.00035,31]
[400619831,1767747055701,-602.333126,0.00035,31]
[400619832,1767747055711,-301.240145,0.00035,31]
[400619833,1767747055720,-301.240145,0.00035,31]
[400619834,1767747055729,-210.903652,0.00035,31]
[400619835,1767747055738,-422.884766,0.00035,31]
[400619836,1767747055748,-422.884766,0.00035,31]
[400619837,1767747055757,-422.884766,0.00035,31]
[400619838,1767747055767,-151.0,0.00035,31]
[400619839,1767747055776,-422.884766,0.00035,31]
[400619840,1767747055785,-1000.0,0.00035,7]
[400619841,1767747055795,-5419.0,0.00035094,2]
[400619842,1767747055804,-2870.5,0.00035094,4]
[400619843,1767747055813,-152.0,0.00035165,10]
[400619844,1767747055823,-173.94,0.00035194,120]
[400619845,1767747055832,-4708.68,0.000352,14]
[400619846,1767747055841,-1040.62,0.000352,30]
[400619847,1767747055850,-1000.0,0.000352,7]
[400619848,1767747055859,-2076.5387,0.0003522,30]
[400619849,1767747055868,-310.0,0.00035224,2]
[400619850,1767747055877,-310.0,0.00035225,120]
[400619851,1767747056058,-1187.94,0.000353,14]
[400619852,1767747056067,-3805.47,0.000353,2]
[400619853,1767747056076,-2500.0,0.000353,14]
[400619854,1767747056085,-1208.94,0.000354,14]
[400619855,1767747056094,-73187.13361079,0.000354,2]
[400619856,1767747056756,-583.72879,0.000354,2]
[400619857,1767747056771,-1688.82056585,0.000354,2]
[400619858,1767747056782,-26427.88395898,0.000354,2]
[400619859,1767747056793,-493.17330366,0.000354,2]
[400619860,1767747056814,-860.85068214,0.000354,2]
[400619861,1767747056824,-2003.2843,0.000354,2]
[400619862,1767747056835,-2281.74026794,0.000354,2]
[400619863,1767747056846,-1266.51684298,0.000354,2]
[400619864,1767747056857,-688.30896852,0.000354,2]
[400619865,1767747056913,-197.64870914,0.000354,2]
[400619866,1767747056922,-310.0,0.00035497,2]
[400619867,1767747056931,-160.0,0.000355,13]
[400619868,1767747056940,-160.0,0.000355,13]
[400619869,1767747056949,-2590.0,0.00035536,2]
[400619870,1767747056960,-357.6762453,0.00035543,2]
[400619871,1767747056970,-310.0,0.00035564,2]
[400619872,1767747056981,-300.0,0.00035609,10]
[400619873,1767747056991,-300.0,0.00035609,10]
[400619874,1767747057000,-666.0,0.00035609,30]
[400619875,1767747057009,-300.0,0.00035609,10]
[400619876,1767747057018,-300.0,0.00035609,10]
[400619877,1767747057027,-1776.35695375,0.0003561,2]
[400619878,1767747057038,-497.609535,0.0003561,2]
[400619879,1767747057056,-28461.17939438,0.0003561,2]
[400619880,1767747057065,-201.93286099,0.00035615,2]
[400619881,1767747057075,-300.0,0.00035615,10]
[400619882,1767747057084,-300.0,0.00035615,10]
[400619883,1767747057093,-666.0,0.00035615,30]
[400619884,1767747057105,-300.0,0.00035615,10]
[400619885,1767747057117,-289.39508454,0.00035616,50]
[400619886,1767747057127,-732.0,0.00035616,46]
[400619887,1767747057136,-621.9,0.00035616,47]
[400619888,1767747057147,-625.5,0.00035616,18]
[400619889,1767747057157,-580.8,0.00035616,118]
[400619890,1767747057166,-480.9,0.00035616,35]
[400619891,1767747057175,-314.85065759,0.00035616,82]
[400619892,1767747057184,-147.49770406,0.00035616,27]
[400619893,1767747057196,-377.50229594,0.00035616,27]
[400619894,1767747057205,-552.0,0.00035616,42]
[400619895,1767747057215,-300.0,0.00035616,5]
[400619896,1767747057224,-500.0,0.00035616,7]
[400619897,1767747057233,-500.0,0.00035616,7]
[400619898,1767747057242,-500.0,0.00035616,7]
[400619899,1767747057252,-500.0,0.00035616,7]
[400619900,1767747057261,-500.0,0.00035616,7]
[400619901,1767747057271,-500.0,0.00035616,7]
[400619902,1767747057280,-500.0,0.00035616,7]
[400619903,1767747057289,-236.46558852,0.00035616,7]
[400619904,1767747057298,-500.0,0.00035616,7]
[400619905,1767747057307,-500.0,0.00035616,7]
[400619906,1767747057316,-500.0,0.00035616,7]
[400619907,1767747057326,-500.0,0.00035616,7]
[400619908,1767747057336,-500.0,0.00035616,7]
[400619909,1767747057347,-500.0,0.00035616,7]
[400619910,1767747057356,-500.0,0.00035616,7]
[400619911,1767747057365,-500.0,0.00035616,7]
[400619912,1767747057375,-500.0,0.00035616,7]
[400619913,1767747057385,-500.0,0.00035616,7]
[400619914,1767747057395,-500.0,0.00035616,7]
[400619915,1767747057404,-500.0,0.00035616,7]
[400619916,1767747057413,-500.0,0.00035616,7]
[400619917,1767747057423,-500.0,0.00035616,7]
[400619918,1767747057432,-500.0,0.00035616,7]
[400619919,1767747057443,-500.0,0.00035616,7]
[400619920,1767747057452,-500.0,0.00035616,7]
[400619921,1767747057462,-500.0,0.00035616,7]
[400619922,1767747057474,-377.78775089,0.00035616,7]
[400619923,1767747057483,-500.0,0.00035616,7]
[400619924,1767747057492,-500.0,0.00035616,7]
[400619925,1767747057502,-500.0,0.00035616,7]
[400619926,1767747057511,-187.15,0.00035616,2]
[400619927,1767747057520,-1093.85090882,0.0003563,2]
[400619928,1767747057530,-152.0,0.00035669,11]
[400619929,1767747057539,-173.012936,0.000357,5]
[400619930,1767747057548,-200.0,0.000357,2]
[400619931,1767747057558,-300.0,0.00035729,10]
[400619932,1767747057567,-68737.36819117,0.0003573,120]
[400619933,1767747057579,-524.70305901,0.0003573,120]
[400619934,1767747057810,-466.310161,0.0003573,120]
[400619935,1767747057998,-1.7e-07,0.0003573,120]
[400619936,1767747058080,-1034.5840272,0.00020096,2]
[400619937,1767747058237,-164.47728644,0.000179,2]
[400619938,1767747058247,-13240.52271356,0.00020096,2]
[400619939,1767747058343,-9523.14296502,0.00020096,2]
[400619940,1767747058353,-500.0,0.00027397,20]
[400619941,1767747058363,-199.666573,0.00031507,31]
[400619942,1767747058373,-199.666573,0.00031507,31]
[400619943,1767747058382,-199.666573,0.00031507,31]
[400619944,1767747058392,-736.795588,0.00031507,31]
[400619945,1767747058402,-736.795588,0.00031507,31]
[400619946,1767747058411,-1153.704843,0.00031507,31]
[400619947,1767747058421,-199.666573,0.00031507,31]
[400619948,1767747058431,-736.795588,0.00031507,31]
[400619949,1767747058441,-1153.704843,0.00031507,31]
[400619950,1767747058450,-199.666573,0.00031507,31]
[400619951,1767747058460,-1153.704843,0.00031507,31]
[400619952,1767747058470,-199.666573,0.00031507,31]
[400619953,1767747058479,-736.795588,0.00031507,31]
[400619954,1767747058489,-1153.704843,0.00031507,31]
[400619955,1767747058499,-86.70817901,0.00031507,31]
[400619956,1767747058514,-650.08740899,0.00031507,31]
[400619957,1767747058524,-180.71096089,0.00031507,31]
[400619958,1767747058538,-18.95561211,0.00031507,31]
[400619959,1767747058548,-1153.704843,0.00031507,31]
[400619960,1767747058558,-736.795588,0.00031507,31]
[400619961,1767747058568,-1153.704843,0.00031507,31]
[400619962,1767747058578,-199.666573,0.00034542,31]
[400619963,1767747058588,-736.795588,0.00034542,31]
[400619964,1767747058597,-1153.704843,0.00034542,31]
[400619965,1767747058607,-199.666573,0.00034542,31]
[400619966,1767747058617,-736.795588,0.00034542,31]
[400619967,1767747058626,-1153.704843,0.00034542,31]
[400619968,1767747058635,-16016.52942423,0.0003573,120]
[400619969,1767747058649,-35739.97568166,0.0003573,120]
[400619970,1767747058672,-1093.57675225,0.00020421,2]
[400619971,1767747058687,-342.15806993,0.00020421,2]
[400619972,1767747058707,-209.9721304,0.00019873,2]
[400619973,1767747058716,-1283.73490558,0.00020421,2]
[400619974,1767747058728,-2973.24924164,0.00020421,2]
[400619976,1767747080215,490.0,0.0003287,120]
[400620074,1767747257260,160.0,0.000328,120]
[400620078,1767747345902,439.04,0.00015,7]
[400620104,1767747753752,527.76,0.00032877,120]
[400620113,1767748044524,1363.87,0.00024989,120]
[400620114,1767748145877,-459.696127,0.00016374,2]
[400620115,1767748148462,-242.0811956,0.00016374,2]
[400620116,1767748163650,-20.0426774,0.00016374,2]
[400620117,1767748163670,-4950.71,0.00016438,2]
[400620118,1767748163693,-944.79486346,0.00016534,2]
[400620156,1767748231687,-555.20513654,0.00016534,2]
[400620158,1767748231697,-250.0,0.00016597,2]
[400620160,1767748231707,-1363.87,0.00016659,2]
[400620162,1767748231716,-571.82486342,0.0001669,2]
[400620164,1767748231727,-344.17171453,0.0001669,2]
[400620167,1767748231739,-284.00342205,0.0001669,2]
[400620168,1767748231748,-200.0,0.00016691,2]
[400620170,1767748231757,-130.37106765,0.00016691,2]
[400620172,1767748231769,-169.62893235,0.00016691,2]
[400620173,1767748231779,-387.01781551,0.000167,2]
[400620174,1767748231791,-414.84566183,0.000167,2]
[400620175,1767748231801,-300.0,0.00016737,2]
[400620176,1767748231811,-300.0,0.00016737,2]
[400620177,1767748231821,-164.72,0.00016809,2]
[400620178,1767748231830,-59.36718563,0.00016816,2]
[400620179,1767748231842,-91.63281437,0.00016816,2]
[400620180,1767748231851,-228.25274488,0.00016818,2]
[400620181,1767748231863,-740.8934828,0.00016819,2]
[400620182,1767748231910,-661.42405583,0.00016819,2]
[400620183,1767748231921,-346.84803172,0.00016819,2]
[400620184,1767748231932,-1573.12997765,0.00016819,2]
[400620185,1767748231947,-886.01682985,0.00016819,2]
[400620186,1767748231964,-620.28830046,0.00016819,2]
[400620187,1767748231975,-6530.29967932,0.00016819,2]
[400620188,1767748231986,-3247.04522264,0.00016819,2]
[400620196,1767748237402,-500.0,0.00016818,2]
[400620197,1767748237412,-500.0,0.00016818,2]
[400620198,1767748237421,-500.0,0.00016818,2]
[400620199,1767748237430,-500.0,0.00016818,2]
[400620200,1767748237440,-500.0,0.00016818,2]
[400620201,1767748237452,-500.0,0.00016818,2]
[400620202,1767748237462,-500.0,0.00016818,2]
[400620203,1767748237471,-500.0,0.00016818,2]
[400620204,1767748237480,-500.0,0.00016818,2]
[400620205,1767748237490,-500.0,0.00016818,2]
[400620206,1767748237498,-500.0,0.00016818,2]
[400620207,1767748237508,-530.60195322,0.00016818,2]
[400620208,1767748237518,-500.0,0.00016818,2]
[400620209,1767748237528,-500.0,0.00016818,2]
[400620210,1767748237537,-500.0,0.00016818,2]
[400620211,1767748237546,-500.0,0.00016818,2]
[400620212,1767748237555,-500.0,0.00016818,2]
[400620213,1767748237564,-500.0,0.00016818,2]
[400620214,1767748237573,-500.0,0.00016818,2]
[400620215,1767748237582,-256.39046345,0.00016818,2]
[400620216,1767748237591,-500.0,0.00016818,2]
[400620217,1767748237600,-500.0,0.00016818,2]
[400620218,1767748237609,-500.0,0.00016818,2]
[400620219,1767748237618,-500.0,0.00016818,2]
[400620220,1767748237628,-500.0,0.00016818,2]
[400620221,1767748237638,-500.0,0.00016818,2]
[400620222,1767748237647,-500.0,0.00016818,2]
[400620223,1767748237656,-500.0,0.00016818,2]
[400620224,1767748237665,-500.0,0.00016818,2]
[400620225,1767748237675,-500.0,0.00016818,2]
[400620226,1767748237684,-500.0,0.00016818,2]
[400620227,1767748237694,-500.0,0.00016818,2]
[400620228,1767748237703,-500.0,0.00016818,2]
[400620229,1767748237713,-500.0,0.00016818,2]
[400620230,1767748237722,-500.0,0.00016818,2]
[400620231,1767748237731,-500.0,0.00016818,2]
[400620232,1767748237741,-500.0,0.00016818,2]
[400620233,1767748237750,-500.0,0.00016818,2]
[400620234,1767748237759,-142244.07616679,0.00016819,2]
[400620235,1767748237770,-2937.01053757,0.00016819,2]
[400620236,1767748237781,-12082.22754887,0.00016819,2]
[400620237,1767748237793,-3621.51449369,0.00016819,2]
[400620238,1767748237808,-1555.25505695,0.00016819,2]
[400620243,1767748237841,-519.16625532,0.00016819,2]
[400620245,1767748237851,-5888.10906439,0.00016819,2]
[400620247,1767748237862,-816546.69529615,0.00016819,2]
[400620250,1767748237871,-34728.81,0.00016919,2]
[400620252,1767748237880,-4495.63,0.0001692,2]
[400620254,1767748237889,-9999.99,0.00016977,2]
[400620256,1767748237898,-63881.21,0.00016977,2]
[400620258,1767748237907,-1533.8,0.00016977,2]
[400620260,1767748237917,-743.16,0.00016977,2]
[400620262,1767748237926,-999.99,0.00016977,2]
[400620264,1767748237935,-299.99,0.00016977,4]
[400620266,1767748237944,-721.82,0.00016988,2]
[400620268,1767748237953,-500.0,0.00016995,2]
[400620270,1767748237963,-9999.99,0.00016995,2]
[400620272,1767748237972,-150.99,0.00016995,2]
[400620274,1767748237981,-250.0,0.00017,2]
[400620275,1767748237990,-151.08,0.00017266,2]
[400620277,1767748237999,-151.0,0.00017266,2]
[400620280,1767748238009,-151.0,0.00017274,2]
[400620282,1767748238019,-151.0,0.00017274,2]
[400620283,1767748238028,-4287.32039621,0.00017399,2]
[400620286,1767748238038,-254.20104455,0.00017499,2]
[400620287,1767748238047,-1859.65645266,0.000175,2]
[400620289,1767748238057,-3741.34,0.00017502,2]
[400620292,1767748238067,-1633.129,0.00017588,2]
[400620294,1767748238078,-427.87,0.00017588,2]
[400620296,1767748238087,-158.35481472,0.00017588,2]
[400620298,1767748238096,-1000.0,0.000176,2]
[400620299,1767748238106,-721.82,0.00017602,2]
[400620301,1767748238117,-500.0,0.00017699,2]
[400620303,1767748238127,-157.88868512,0.000177,2]
[400620305,1767748238136,-427.87,0.00017862,2]
[400620307,1767748238146,-500.0,0.00017973,2]
[400620309,1767748238155,-500.0,0.00017973,2]
[400620311,1767748238165,-500.0,0.00017973,2]
[400620313,1767748238176,-427.87,0.00018136,2]
[400620315,1767748238185,-250.0,0.00018187,2]
[400620318,1767748238195,-721.82,0.00018216,2]
[400620320,1767748238205,-420.0,0.00018286,2]
[400620321,1767748238215,-420.0,0.00018286,2]
[400620324,1767748238225,-1680.0,0.00018326,2]
[400620325,1767748238235,-200.52452869,0.0001836,2]
[400620328,1767748238245,-300.0,0.0001836,2]
[400620329,1767748238254,-250.0,0.0001836,2]